fUSD/lending_fUSD_20240101
["ID","MTS","AMOUNT","RATE_DAILY","PERIOD"]
[309798841,1704148238329,-173.81,0.0003021,2]
[309798842,1704148238341,-701.5,0.00030211,2]
[309798843,1704148238354,-278.55886993,0.00030242,2]
[309798844,1704148238381,-4205.33861487,0.00030242,2]
[309798845,1704148238398,-461.76105328,0.00030242,2]
[309798846,1704148238424,-180.60146192,0.00030242,2]
[309798847,1704148238439,-610.51,0.00030331,2]
[309798848,1704148238457,-500.0,0.00030365,2]
[309798849,1704148238474,-143.01650634,0.0003041,2]
[309798850,1704148238491,-473.3383626,0.0003041,2]
[309798851,1704148238887,-4509.90513106,0.0003041,2]
[309798852,1704148238897,-800.0,0.00030423,2]
[309798853,1704148238907,-250.0,0.00030457,2]
[309798854,1704148238916,-150.0,0.00030473,2]
[309798855,1704148238926,-500.0,0.00030484,2]
[309798856,1704148238935,-2082.1138247,0.00030578,2]
[309798857,1704148238948,-3044.1461753,0.00030578,2]
[309798858,1704148238958,-210.60429078,0.00030665,2]
[309798859,1704148238968,-160.42,0.00030686,2]
[309798860,1704148238977,-160.42,0.00030863,2]
[309798861,1704148238986,-343.68553094,0.000309,2]
[309798862,1704148238995,-185.98,0.00030928,2]
[309798863,1704148239005,-9525.64097975,0.0003099,2]
[309798864,1704148239014,-575.77581819,0.00030998,4]
[309798865,1704148239024,-243.72065009,0.00030998,4]
[309798866,1704148239033,-541.40898193,0.00030998,4]
[309798867,1704148239043,-278.72695756,0.00030998,4]
[309798868,1704148239053,-1528.0728375,0.00030998,4]
[309798869,1704148239064,-157.92794869,0.00030998,4]
[309798870,1704148239074,-252.70370625,0.00030998,4]
[309798871,1704148239083,-530.49786083,0.00030998,4]
[309798872,1704148239093,-159.76703467,0.00030998,4]
[309798873,1704148239103,-1000.0,0.00030999,2]
[309798874,1704148239113,-10596.53203629,0.00030999,2]
[309798875,1704148239123,-1350.0,0.00031,3]
[309798876,1704148239133,-359.58,0.00031,2]
[309798877,1704148239142,-9999.99,0.00031,2]
[309798878,1704148239153,-150.99,0.00031003,2]
[309798879,1704148239163,-771.6,0.00031038,2]
[309798880,1704148239172,-160.42,0.00031041,2]
[309798881,1704148239182,-20325.08738128,0.000311,4]
[309798882,1704148239191,-250.0,0.00031101,2]
[309798883,1704148239200,-2377.85,0.00031138,2]
[309798884,1704148239210,-1816.4,0.00031148,2]
[309798885,1704148239219,-175.29,0.0003117,2]
[309798886,1704148239229,-701.5,0.0003119,2]
[309798887,1704148239239,-160.42,0.00031219,2]
[309798888,1704148239248,-565.91,0.00031248,2]
[309798889,1704148239258,-210.60429078,0.00031278,2]
[309798890,1704148239268,-795.6,0.00031374,2]
[309798891,1704148239288,-160.42,0.00031396,2]
[309798892,1704148239297,-246.41,0.00031452,2]
[309798893,1704148239306,-160.42,0.00031574,2]
[309798894,1704148239315,-160.42,0.00031752,2]
[309798895,1704148239324,-683.16,0.00031766,2]
[309798896,1704148239333,-210.60429078,0.0003189,2]
[309798897,1704148239342,-160.42,0.00031929,2]
[309798898,1704148239351,-1857.59,0.00031966,2]
[309798899,1704148239361,-2240.71348365,0.00032,4]
[309798900,1704148239370,-160.42,0.00032107,2]
[309798901,1704148239379,-701.5,0.00032168,2]
[309798902,1704148239388,-160.42,0.00032285,2]
[309798903,1704148239398,-565.91,0.00032363,2]
[309798904,1704148239407,-210.60429078,0.00032503,2]
[309798905,1704148239416,-200.0,0.00032572,2]
[309798906,1704148239425,-343.68553094,0.00032622,2]
[309798907,1704148239434,-172.45,0.00032747,2]
[309798908,1704148239444,-327.19,0.00032818,2]
[309798909,1704148239454,-246.41,0.00032822,2]
[309798910,1704148239463,-166.88,0.00032864,2]
[309798911,1704148239472,-162.65,0.00032877,15]
[309798912,1704148239482,-214.25,0.0003288,2]
[309798913,1704148239491,-1000.0,0.000329,2]
[309798914,1704148239500,-656.7881879,0.000329,2]
[309798915,1704148239509,-1000.0,0.000329,2]
[309798916,1704148239519,-1527.0,0.000329,2]
[309798917,1704148239528,-327.19,0.0003299,2]
[309798918,1704148239537,-1400.0,0.00033,3]
[309798919,1704148239547,-210.60429078,0.00033115,2]
[309798920,1704148239556,-701.5,0.00033147,2]
[309798921,1704148239566,-327.19,0.00033163,2]
[309798922,1704148239575,-327.19,0.00033336,2]
[309798923,1704148239584,-187.96,0.00033423,2]
[309798924,1704148239599,-155.0,0.0003347,4]
[309798925,1704148239616,-565.91,0.00033478,2]
[309798926,1704148239626,-175.64,0.000335,2]
[309798927,1704148239636,-327.19,0.00033508,2]
[309798928,1704148239646,-795.6,0.00033638,2]
[309798929,1704148239655,-151.0,0.00033664,120]
[309798930,1704148239665,-327.19,0.00033681,2]
[309798931,1704148239676,-210.60429078,0.00033728,2]
[309798932,1704148239687,-187.96,0.00033754,2]
[309798933,1704148239697,-381.37464108,0.00033754,2]
[309798934,1704148239707,-40291.6157,0.000338,2]
[309798935,1704148239717,-327.19,0.00033854,2]
[309798936,1704148239727,-2210.03188694,0.0003389,6]
[309798937,1704148239736,-19455.0,0.000339,3]
[309798938,1704148239746,-400.0,0.000339,12]
[309798939,1704148239756,-3315.04783041,0.0003399,6]
[309798940,1704148239765,-1000.0,0.00034,4]
[309798941,1704148239775,-27296.41223688,0.00034,4]
[309798942,1704148239784,-150.0,0.00034008,2]
[309798943,1704148239793,-327.19,0.00034027,2]
[309798944,1704148239802,-175.64,0.00034048,2]
[309798945,1704148239813,-150.0,0.00034054,2]
[309798946,1704148239822,-153.84,0.00034077,2]
[309798947,1704148239832,-1105.01594347,0.00034082,6]
[309798948,1704148239841,-187.96,0.00034085,2]
[309798949,1704148239851,-701.5,0.00034125,2]
[309798950,1704148239861,-327.19,0.00034199,2]
[309798951,1704148239871,-461.0,0.00034201,2]
[309798952,1704148239882,-500.0,0.00034216,2]
[309798953,1704148239894,-800.0,0.00034226,2]
[309798954,1704148239904,-244.7616,0.0003429,2]
[309798955,1704148239915,-1000.0,0.000343,2]
[309798956,1704148239926,-1105.01594347,0.00034316,7]
[309798957,1704148239935,-461.32503459,0.00034326,2]
[309798958,1704148239945,-210.60429078,0.0003434,2]
[309798959,1704148239955,-343.68553094,0.00034344,2]
[309798960,1704148239964,-174.33907959,0.00034346,2]
[309798961,1704148239974,-174.85041403,0.00034349,6]
[309798962,1704148239984,-151.0,0.00034351,30]
[309798963,1704148239994,-327.19,0.00034372,2]
[309798964,1704148240003,-1105.01594347,0.00034388,7]
[309798965,1704148240013,-157.77777,0.00034398,3]
[309798966,1704148240023,-444.23721876,0.00034398,4]
[309798967,1704148240032,-155.0,0.00034399,2]
[309798968,1704148240042,-1182.92915107,0.00034399,4]
[309798969,1704148240052,-155.0,0.00034399,2]
[309798970,1704148240062,-165.99149284,0.00034399,4]
[309798971,1704148240071,-410.82248049,0.00034399,4]
[309798972,1704148240081,-699.4220678,0.00034399,2]
[309798973,1704148240090,-303.37333735,0.00034399,4]
[309798974,1704148240099,-1148.80449273,0.00034399,4]
[309798975,1704148240109,-3000.0,0.000344,2]
[309798976,1704148240119,-214.25,0.00034406,2]
[309798977,1704148240128,-8840.12754776,0.00034415,7]
[309798978,1704148240138,-187.96,0.00034416,2]
[309798979,1704148240147,-6630.09566082,0.00034416,7]
[309798980,1704148240158,-505.03249892,0.00034436,2]
[309798981,1704148240167,-214.25,0.00034436,2]
[309798982,1704148240177,-426.51421733,0.00034443,2]
[309798983,1704148240191,-1136.0547,0.00034444,2]
[309798984,1704148240200,-100000.0,0.00034445,2]
[309798985,1704148240209,-1000.0,0.00034445,2]
[309798986,1704148240219,-245000.0,0.00034446,2]
[309798988,1704148240229,-6902.1427,0.00034447,2]
[309798989,1704148240238,-341.75664799,0.00034449,2]
[309798990,1704148240248,-157.77777,0.00034498,3]
[309798991,1704148240257,-1503.35830322,0.000345,2]
[309798992,1704148240268,-214.25,0.00034536,2]
[309798994,1704148240279,-327.19,0.00034545,2]
[309798996,1704148240288,-446.80280138,0.00034545,4]
[309798997,1704148240298,-291.78761235,0.00034545,4]
[309798998,1704148240307,-2351.3011923,0.00034545,4]
[309798999,1704148240317,-241.61161094,0.00034545,4]
[309799000,1704148240327,-1037.0817784,0.00034546,4]
[309799002,1704148240338,-34871.20810787,0.00034546,4]
[309799004,1704148240347,-492.83979718,0.00034547,4]
[309799006,1704148240357,-393.68225135,0.00034547,4]
[309799008,1704148240366,-28015.5115499,0.00034547,4]
[309799010,1704148240376,-279.95435992,0.00034549,4]
[309799012,1704148240385,-381.37464107,0.00034578,2]
[309799014,1704148240394,-565.91,0.00034592,2]
[309799016,1704148240404,-175.64,0.00034596,2]
[309799018,1704148240413,-157.77777,0.00034598,3]
[309799020,1704148240422,-286.5,0.00034634,2]
[309799022,1704148240432,-157.77777,0.00034698,3]
[309799024,1704148240441,-327.19,0.00034717,2]
[309799026,1704148240450,-461.32503455,0.0003472,2]
[309799028,1704148240459,-227.70232845,0.00034724,4]
[309799030,1704148240468,-187.96,0.00034746,2]
[309799032,1704148240477,-1000.0,0.00034798,2]
[309799034,1704148240486,-1000.0,0.00034798,2]
[309799036,1704148240495,-1000.0,0.00034798,2]
[309799038,1704148240504,-448.66167772,0.00034798,2]
[309799040,1704148240514,-5420.27681334,0.000348,7]
[309799042,1704148240523,-214.25,0.00034889,2]
[309799044,1704148240532,-214.25,0.0003489,2]
[309799046,1704148240541,-327.19,0.0003489,2]
[309799048,1704148240550,-560.43559995,0.00034896,4]
[309799050,1704148240560,-540.53733364,0.00034896,4]
[309799052,1704148240569,-238.08291792,0.00034896,4]
[309799054,1704148240578,-157.23200511,0.00034896,2]
[309799056,1704148240588,-7931.16543877,0.00034896,4]
[309799058,1704148240597,-1141.17784084,0.00034896,4]
[309799060,1704148240607,-421.66273291,0.00034896,4]
[309799062,1704148240617,-4601.91989485,0.00034897,4]
[309799064,1704148240626,-387.15044374,0.00034897,2]
[309799065,1704148240636,-16706.72309889,0.00034898,4]
[309799066,1704148240645,-2605.2545687,0.00034898,4]
[309799068,1704148240655,-5000.0,0.00034898,4]
[309799069,1704148240663,-513.70005074,0.00034898,4]
[309799071,1704148240673,-214.21133708,0.00034898,4]
[309799073,1704148240681,-155.0,0.00034898,4]
[309799075,1704148240690,-271.60356637,0.00034898,4]
[309799077,1704148240699,-541.22410251,0.00034898,4]
[309799079,1704148240708,-163.35829217,0.00034898,4]
[309799081,1704148240717,-200.0,0.00034898,2]
[309799083,1704148240726,-402.17174956,0.00034898,4]
[309799084,1704148240735,-161.21857687,0.00034898,4]
[309799086,1704148240745,-1074.86246861,0.00034898,4]
[309799088,1704148240754,-930.04441844,0.00034898,2]
[309799090,1704148240763,-155.0,0.00034898,4]
[309799092,1704148240772,-574.02915906,0.00034898,4]
[309799094,1704148240782,-362.5696016,0.00034898,4]
[309799096,1704148240791,-155.0,0.00034898,4]
[309799098,1704148240800,-424.67906134,0.00034898,4]
[309799100,1704148240809,-598.38979949,0.00034898,4]
[309799102,1704148240818,-526.86634552,0.00034898,4]
[309799104,1704148240827,-2129.994798,0.00034898,4]
[309799105,1704148240838,-628.30262615,0.00034898,4]
[309799107,1704148240847,-382.91152726,0.00034898,4]
[309799109,1704148240857,-156.8552177,0.00034898,4]
[309799111,1704148240867,-946.94938561,0.00034898,2]
[309799113,1704148240876,-187.51,0.00034898,2]
[309799115,1704148240885,-187.51,0.00034898,2]
[309799117,1704148240893,-292.146584,0.00034899,7]
[309799119,1704148240903,-442.065217,0.00034899,7]
[309799121,1704148240914,-155.0,0.00034899,4]
[309799123,1704148240923,-352.84792754,0.00034899,4]
[309799125,1704148240932,-5000.0,0.00034899,3]
[309799127,1704148240942,-3059.79907205,0.00034899,4]
[309799129,1704148240951,-650.14671211,0.00034899,4]
[309799131,1704148240960,-86267.94335397,0.00034899,2]
[309799133,1704148240970,-312254.63009561,0.000349,2]
[309799135,1704148240981,-442.065217,0.000349,7]
[309799137,1704148240990,-442.065217,0.000349,7]
[309799138,1704148241000,-800.0,0.000349,12]
[309799139,1704148241009,-172.45,0.00034984,2]
[309799140,1704148241018,-388.75870276,0.00034999,2]
[309799141,1704148241028,-201.11617094,0.00035,2]
[309799142,1704148241039,-1252.88117636,0.00035,4]
[309799143,1704148241048,-2500.0,0.00035,2]
[309799144,1704148241057,-241.51757549,0.00035,4]
[309799145,1704148241067,-16450.98256788,0.00035,2]
[309799146,1704148241077,-1328.35015693,0.00035,2]
[309799147,1704148241086,-425.13744,0.00035,2]
[309799148,1704148241095,-1450.0,0.00035,3]
[309799149,1704148241105,-155.0,0.00035,2]
[309799150,1704148241115,-151.0,0.00035052,7]
[309799151,1704148241124,-327.19,0.00035063,2]
[309799152,1704148241134,-187.96,0.00035077,2]
[309799153,1704148241144,-701.5,0.00035104,2]
[309799154,1704148241154,-153.84,0.0003511,2]
[309799155,1704148241164,-461.32503455,0.00035113,2]
[309799156,1704148241173,-175.64,0.00035144,2]
[309799157,1704148241183,-327.19,0.00035236,2]
[309799158,1704148241193,-381.37464107,0.00035403,2]
[309799159,1704148241202,-327.19,0.00035408,2]
[309799160,1704148241211,-187.96,0.00035408,2]
[309799161,1704148241221,-1155.78988924,0.000355,2]
[309799162,1704148241231,-461.32503455,0.00035507,2]
[309799163,1704148241240,-327.19,0.00035581,2]
[309799164,1704148241249,-168.7,0.00035584,2]
[309799165,1704148241259,-151.34,0.00035616,2]
[309799166,1704148241268,-175.64,0.00035692,2]
[309799167,1704148241277,-187.96,0.00035739,2]
[309799168,1704148241287,-327.19,0.00035754,2]
[309799169,1704148241296,-207.0,0.0003576,21]
[309799170,1704148241305,-151.0,0.00035767,4]
[309799171,1704148241315,-5420.27681332,0.00035787,8]
[309799172,1704148241324,-1200.0,0.000358,13]
[309799174,1704148241456,-461.32503455,0.000359,2]
[309799175,1704148241468,-1600.0,0.000359,13]
[309799176,1704148241478,-909.68033757,0.000359,2]
[309799177,1704148241491,-8228.66206251,0.000359,2]
[309799178,1704148241503,-582.07097098,0.000359,2]
[309799179,1704148241515,-486.27757656,0.000359,2]
[309799180,1704148241529,-150.9118151,0.000359,2]
[309799181,1704148241540,-1642.31145039,0.000359,2]
[309799182,1704148241550,-181.56322633,0.000359,2]
[309799183,1704148241561,-795.6,0.00035902,2]
[309799184,1704148241573,-327.19,0.00035926,2]
[309799185,1704148241586,-214.25,0.00035989,2]
[309799186,1704148241598,-505.03249892,0.0003599,2]
[309799187,1704148241609,-214.25,0.0003599,2]
[309799188,1704148241622,-214.25,0.0003599,2]
[309799189,1704148241634,-426.51421733,0.00035997,2]
[309799190,1704148241646,-157.77777,0.00035998,3]
[309799191,1704148241658,-19189.72402711,0.00035999,4]
[309799192,1704148241668,-383.79448054,0.00035999,4]
[309799193,1704148241679,-150.0,0.00035999,2]
[309799194,1704148241689,-530.29226633,0.00035999,2]
[309799195,1704148241699,-548.53966931,0.00035999,4]
[309799196,1704148241709,-500.0,0.00035999,4]
[309799197,1704148241720,-413.62625684,0.00035999,4]
[309799198,1704148241730,-500.0,0.00035999,4]
[309799199,1704148241740,-159.71700403,0.00035999,4]
[309799200,1704148241750,-395.2,0.00035999,4]
[309799201,1704148241760,-500.0,0.00035999,4]
[309799202,1704148241770,-500.0,0.00035999,4]
[309799203,1704148241780,-500.0,0.00035999,4]
[309799204,1704148241790,-166.61087261,0.00035999,7]
[309799205,1704148241800,-83336.30108726,0.00036,4]
[309799206,1704148241810,-403900.77611607,0.00036,2]
[309799207,1704148241821,-442.065217,0.00036,7]
[309799208,1704148241831,-442.065217,0.00036,7]
[309799209,1704148241842,-41252.0,0.00036,4]
[309799210,1704148241856,-18728.0,0.00036,4]
[309799211,1704148241866,-324.0,0.00036,4]
[309799212,1704148241876,-190.089726,0.00036,7]
[309799213,1704148241886,-190.089726,0.00036,7]
[309799214,1704148241896,-431.74556147,0.00036005,2]
[309799215,1704148241906,-187.96,0.0003607,2]
[309799216,1704148241917,-701.5,0.00036082,2]
[309799217,1704148241928,-3238.83849728,0.00036089,2]
[309799218,1704148241939,-3238.83849728,0.00036089,2]
[309799219,1704148241951,-3238.83849728,0.00036089,2]
[309799220,1704148241962,-157.77777,0.00036098,3]
[309799221,1704148241973,-327.19,0.00036099,2]
[309799222,1704148241984,-166.95,0.00036103,2]
[309799223,1704148241995,-800.0,0.00036142,10]
[309799224,1704148242005,-153.84,0.00036143,2]
[309799225,1704148242016,-157.77777,0.00036198,3]
[309799226,1704148242026,-381.37464107,0.00036227,2]
[309799227,1704148242036,-349.92,0.0003624,2]
[309799228,1704148242047,-1000.0,0.00036281,2]
[309799229,1704148242057,-1000.0,0.00036281,3]
[309799230,1704148242066,-1000.0,0.00036281,2]
[309799231,1704148242076,-1000.0,0.00036281,2]
[309799232,1704148242087,-1000.0,0.00036281,2]
[309799233,1704148242096,-1000.0,0.00036281,3]
[309799234,1704148242108,-157.77777,0.00036298,3]
[309799235,1704148242119,-151.0,0.00036333,5]
[309799236,1704148242129,-157.77777,0.00036398,3]
[309799237,1704148242139,-187.96,0.00036401,2]
[309799238,1704148242149,-151.0,0.00036497,2]
[309799239,1704148242160,-157.77777,0.00036498,3]
[309799240,1704148242170,-157.77777,0.00036598,3]
[309799241,1704148242180,-3238.83849728,0.0003664,2]
[309799242,1704148242191,-200.0,0.00036644,2]
[309799243,1704148242202,-157.77777,0.00036698,3]
[309799244,1704148242212,-38999.78153417,0.000367,3]
[309799245,1704148242234,-21565.508316,0.000367,3]
[309799246,1704148242727,-187.51,0.00034898,2]
[309799247,1704148242736,-187.51,0.00034898,2]
[309799248,1704148242745,-187.51,0.00034898,2]
[309799249,1704148242755,-187.51,0.00034898,2]
[309799250,1704148242764,-187.51,0.00034898,2]
[309799251,1704148242773,-31.4101867,0.00034898,2]
[309799252,1704148242889,-156.0998133,0.00034898,2]
[309799253,1704148242898,-1376.2864317,0.000367,3]
[309799254,1704148242913,-50042.24292062,0.000367,3]
[309799256,1704148243266,-18592.22433683,0.000367,3]
[309799257,1704148243279,-300.0,0.000367,3]
[309799259,1704148245894,-420.8953,0.00024438,14]
[309799260,1704148245904,-306.1997,0.00031765,4]
[309799261,1704148245917,-1673.79968842,0.00031765,4]
[309799262,1704148245928,-1585.70031309,0.00034897,4]
[309799263,1704148245986,-4133.30276313,0.00034897,4]
[309799264,1704148245996,-1364.59116125,0.000358,2]
[309799265,1704148246006,-222.63,0.0003599,10]
[309799266,1704148246015,-60101.15363339,0.000367,3]
[309799267,1704148246026,-1031.36338626,0.000367,3]
[309799268,1704148246038,-1512.98352193,0.000367,3]
[309799269,1704148246049,-6585.65978477,0.000367,3]
[309799270,1704148246121,-359.7371675,0.000367,3]
[309799271,1704148246140,-296.75,0.000367,3]
[309799272,1704148246277,-479.96318635,0.000367,3]
[309799273,1704148246289,-381.8249128,0.000367,3]
[309799274,1704148246301,-257.11873568,0.000367,3]
[309799275,1704148246313,-546.49192064,0.000367,3]
[309799286,1704149432001,-930.65377977,0.00026989,2]
[309799287,1704149432012,-282.64689268,0.0002699,2]
[309799288,1704149432023,-250.07982311,0.00026991,2]
[309799289,1704149432037,-1679.6095696,0.00026991,2]
[309799290,1704149432050,-1026.39824093,0.00026991,2]
[309799291,1704149432064,-1300.48465595,0.00026991,2]
[309799292,1704149432075,-3180.04163262,0.00026991,2]
[309799293,1704149432085,-250.0,0.00027,3]
[309799294,1704149432095,-300.0,0.00029,3]
[309799295,1704149432105,-768.45,0.00030727,2]
[309799296,1704149432115,-350.0,0.00031,3]
[309799297,1704149432125,-500.0,0.00032104,2]
[309799298,1704149432135,-3990.92,0.00032109,2]
[309799299,1704149432144,-3422.7,0.00032114,2]
[309799300,1704149432154,-176.21,0.000324,2]
[309799301,1704149432164,-499.99,0.000324,2]
[309799302,1704149432174,-4401.31,0.000324,2]
[309799303,1704149432184,-176.21,0.00032489,2]
[309799304,1704149432193,-999.99,0.00032489,2]
[309799305,1704149432203,-176.21,0.00032578,2]
[309799306,1704149432213,-150.99,0.00032578,2]
[309799307,1704149432224,-153.97,0.00032635,2]
[309799308,1704149432235,-322.4,0.00032636,2]
[309799309,1704149432245,-367.2,0.00032644,2]
[309799310,1704149432256,-176.21,0.00032666,2]
[309799311,1704149432266,-341.75664799,0.00032677,2]
[309799312,1704149432278,-2351.3011923,0.00032677,4]
[309799313,1704149432288,-241.61161094,0.00032678,4]
[309799314,1704149432298,-291.78761235,0.00032678,4]
[309799315,1704149432308,-34871.20810787,0.00032678,4]
[309799316,1704149432317,-161.0,0.00032678,2]
[309799317,1704149432327,-279.95435992,0.00032679,4]
[309799319,1704149432338,-28015.5115499,0.00032679,4]
[309799321,1704149432347,-492.83979718,0.00032679,4]
[309799323,1704149432357,-393.68225135,0.00032679,4]
[309799324,1704149432366,-250.0,0.00032693,2]
[309799326,1704149432375,-176.21,0.00032755,2]
[309799328,1704149432385,-153.97,0.00032839,2]
[309799330,1704149432394,-176.21,0.00032844,2]
[309799332,1704149432404,-227.70232845,0.00032846,4]
[309799333,1704149432414,-343.68553094,0.00032911,2]
[309799335,1704149432425,-176.21,0.00032933,2]
[309799337,1704149432435,-250.0,0.00032954,2]
[309799339,1704149432445,-542.24,0.00032971,2]
[309799341,1704149432455,-768.45,0.0003299,2]
[309799343,1704149432465,-162.65,0.00032997,15]
[309799344,1704149432475,-400.0,0.00033,3]
[309799345,1704149432486,-157.23200511,0.00033009,2]
[309799346,1704149432497,-238.08291792,0.00033009,4]
[309799347,1704149432508,-1037.0817784,0.00033009,4]
[309799348,1704149432517,-446.80280138,0.00033009,4]
[309799349,1704149432526,-155.0,0.0003301,4]
[309799350,1704149432535,-200.0,0.0003301,2]
[309799351,1704149432545,-574.02915906,0.00033011,4]
[309799352,1704149432554,-163.35829217,0.00033011,4]
[309799353,1704149432563,-421.66273291,0.00033011,4]
[309799354,1704149432572,-155.0,0.00033011,4]
[309799355,1704149432582,-7931.16543877,0.00033011,4]
[309799356,1704149432592,-3059.79907205,0.00033011,4]
[309799357,1704149432603,-382.91152726,0.00033011,4]
[309799358,1704149432613,-4601.91989485,0.00033011,4]
[309799359,1704149432623,-424.67906134,0.00033011,4]
[309799360,1704149432633,-1141.17784084,0.00033011,4]
[309799361,1704149432643,-155.0,0.00033011,4]
[309799362,1704149432653,-526.86634552,0.00033011,4]
[309799363,1704149432663,-387.15044374,0.00033011,2]
[309799364,1704149432674,-156.8552177,0.00033011,4]
[309799365,1704149432684,-5000.0,0.00033011,4]
[309799366,1704149432693,-513.70005074,0.00033011,4]
[309799367,1704149432703,-362.5696016,0.00033011,4]
[309799368,1704149432713,-2605.2545687,0.00033011,4]
[309799369,1704149432722,-628.30262615,0.00033011,4]
[309799370,1704149432732,-214.21133708,0.00033011,4]
[309799371,1704149432741,-1074.86246861,0.00033012,4]
[309799372,1704149432751,-598.38979949,0.00033012,4]
[309799373,1704149432760,-2129.994798,0.00033012,4]
[309799374,1704149432770,-402.17174956,0.00033012,4]
[309799375,1704149432780,-352.84792754,0.00033012,4]
[309799376,1704149432790,-161.21857687,0.00033012,4]
[309799377,1704149432799,-155.0,0.00033012,4]
[309799378,1704149432810,-560.43559995,0.00033012,4]
[309799379,1704149432819,-540.53733364,0.00033012,4]
[309799380,1704149432828,-541.22410251,0.00033012,4]
[309799381,1704149432837,-16706.72309889,0.00033012,4]
[309799382,1704149432846,-271.60356637,0.00033012,4]
[309799383,1704149432858,-650.14671211,0.00033012,4]
[309799384,1704149432869,-15821.50479431,0.00033013,2]
[309799385,1704149432883,-1003.30335493,0.00033013,2]
[309799386,1704149432898,-345.5106274,0.00033013,2]
[309799387,1704149432924,-1422.7064784,0.00033013,2]
[309799388,1704149432943,-5306.97474496,0.00033013,2]
[309799389,1704149432952,-1270.46,0.00033013,15]
[309799390,1704149432962,-176.21,0.00033022,2]
[309799391,1704149432972,-153.97,0.00033043,2]
[309799392,1704149432982,-500.0,0.00033049,2]
[309799393,1704149432993,-5640.55,0.00033065,2]
[309799394,1704149433003,-1000.0,0.00033076,2]
[309799395,1704149433013,-200.0,0.00033077,2]
[309799396,1704149433024,-480.0,0.00033085,2]
[309799397,1704149433035,-176.21,0.00033111,2]
[309799398,1704149433045,-166.88,0.00033153,2]
[309799399,1704149433056,-163.61,0.0003319,2]
[309799400,1704149433066,-176.21,0.000332,2]
[309799401,1704149433075,-250.0,0.00033215,2]
[309799402,1704149433085,-153.97,0.00033247,2]
[309799403,1704149433094,-176.21,0.00033288,2]
[309799404,1704149433104,-187.96,0.00033354,2]
[309799405,1704149433114,-176.21,0.00033377,2]
[309799406,1704149433123,-153.97,0.00033451,2]
[309799407,1704149433132,-176.21,0.00033466,2]
[309799408,1704149433142,-176.21,0.00033555,2]
[309799409,1704149433151,-176.21,0.00033644,2]
[309799410,1704149433162,-153.97,0.00033655,2]
[309799411,1704149433173,-936.62,0.00033694,2]
[309799412,1704149433182,-176.21,0.00033733,2]
[309799413,1704149433191,-205.07,0.00033769,2]
[309799414,1704149433201,-343.68553094,0.00033781,2]
[309799415,1704149433210,-176.21,0.00033821,2]
[309799416,1704149433220,-153.97,0.00033859,2]
[309799417,1704149433229,-17829.0,0.000339,3]
[309799418,1704149433239,-176.21,0.0003391,2]
[309799419,1704149433248,-177.34,0.00033921,2]
[309799420,1704149433259,-542.24,0.00033949,2]
[309799421,1704149433269,-176.21,0.00033999,2]
[309799422,1704149433281,-1000.0,0.00034,4]
[309799423,1704149433290,-153.97,0.00034063,2]
[309799424,1704149433300,-176.21,0.00034088,2]
[309799425,1704149433310,-153.97,0.00034267,2]
[309799426,1704149433320,-163.61,0.00034296,2]
[309799427,1704149433330,-150.0,0.00034355,2]
[309799428,1704149433339,-153.97,0.00034471,2]
[309799429,1704149433349,-2426.9102,0.000346,2]
[309799430,1704149433359,-1000.0,0.000346,2]
[309799431,1704149433368,-343.68553094,0.0003465,2]
[309799432,1704149433378,-153.97,0.00034675,2]
[309799433,1704149433388,-7597.9910108,0.0003469,7]
[309799434,1704149433398,-171.41,0.0003469,2]